Workbook

Sheet DATA
A1: Unique_ID | B1: Score
A2: 15 | B2: =VLOOKUP(A2,Scores,3,0) -> 70.67541568
A3: 136 | B3: 57.20966518
A4: 181 | B4: 49.53668657
A5: 208 | B5: 49.490282
A6: 237 | B6: 66.98168838
A7: 247 | B7: 47.00460997
A8: 301 | B8: 65.72551455
A9: 314 | B9: 43.06849442
A10: 360 | B10: 56.42606854
A11: 373 | B11: 59.65160642
A12: 389 | B12: 53.79921232
A13: 442 | B13: 51.45006015
A14: 456 | B14: 51.24866076
A15: 509 | B15: 56.38217611
A16: 688 | B16: 0
A17: 748 | B17: 71.76481266
A18: 797 | B18: 72.19811495
A19: 1009 | B19: 67.65325537
A20: 1045 | B20: 45.14655452
A21: 1065 | B21: 59.41511242
A22: 1123 | B22: 43.67883139
A23: 1133 | B23: 36.29588927
A24: 1254 | B24: 48.59552003
A25: 1392 | B25: 49.9121963
A26: 1594 | B26: 54.56338326
A27: 1637 | B27: 57.45780988
A28: 1641 | B28: 68.11047645
A29: 1686 | B29: 36.71821964
A30: 1763 | B30: 45.35872965
A31: 1845 | B31: 59.00150134
A32: 1848 | B32: 66.54662104
A33: 1933 | B33: 69.36987621
A34: 1943 | B34: 43.701629
A35: 2017 | B35: 61.13923507
A36: 2023 | B36: 50.80126866
A37: 2027 | B37: 59.78320193
A38: 2141 | B38: 78.39452722
A39: 2147 | B39: 59.86680942
A40: 2157 | B40: 30.17228105
A41: 2159 | B41: 67.18974786
A42: 2165 | B42: 67.47518667
A43: 2205 | B43: 0
A44: 2213 | B44: 57.81889822
A45: 2232 | B45: 61.44579887
A46: 2248 | B46: 58.66401528
A47: 2255 | B47: 59.36237744
A48: 2276 | B48: 71.35397789
A49: 2287 | B49: 70.63180741
A50: 2389 | B50: 37.52588926
A51: 2443 | B51: 68.3650442
A52: 2500 | B52: 72.81060245
A53: 2506 | B53: 57.80628553
A54: 2517 | B54: 56.38252141
A55: 2535 | B55: 57.59104359
A56: 2629 | B56: 61.44258922
A57: 2681 | B57: 47.04241765
A58: 2707 | B58: 61.16655961
A59: 2733 | B59: 39.31728188
A60: 2734 | B60: 64.41990933
A61: 2937 | B61: 55.68127359
A62: 2952 | B62: 66.00670667
A63: 2991 | B63: 52.7151586
A64: 3047 | B64: 64.31522292
A65: 3128 | B65: 58.67266421
A66: 3142 | B66: =VLOOKUP(A66,Scores,3,0) -> 69.8608424
A67: 3177 | B67: 53.99520412
A68: 3197 | B68: 58.07388835
A69: 3295 | B69: 69.37456532
A70: 3314 | B70: 30.98512101
A71: 3343 | B71: 70.74414504
A72: 3404 | B72: 74.71815898
A73: 3406 | B73: 47.45175201
A74: 3423 | B74: 86.1965462
A75: 3550 | B75: 53.99412445
A76: 3564 | B76: 53.9080587
A77: 3721 | B77: 63.65110087
A78: 3734 | B78: 70.541376
A79: 3814 | B79: 35.93169825
A80: 3840 | B80: 66.33697819
A81: 3842 | B81: 35.99372736
A82: 3853 | B82: 39.36490023
A83: 3946 | B83: 60.30089053
A84: 4021 | B84: 71.31225249
A85: 4030 | B85: 42.81887717
A86: 4075 | B86: 46.32179278
A87: 4103 | B87: 68.50624333
A88: 4156 | B88: 61.02533516
A89: 4268 | B89: 36.46411071
A90: 4324 | B90: 55.51758161
A91: 4356 | B91: 54.2992411
A92: 4367 | B92: 67.05447593
A93: 4434 | B93: 23.79216704
A94: 4444 | B94: 37.12919917
A95: 4492 | B95: 42.01398682
A96: 4739 | B96: 5.210632107
A97: 4787 | B97: 50.91262839
A98: 4881 | B98: 58.80105007
A99: 4886 | B99: 53.76863756
A100: 4987 | B100: 69.71705813
A101: 5023 | B101: 71.19349556
A102: 5049 | B102: 76.81452811
A103: 5068 | B103: 24.68771954
A104: 5072 | B104: 43.42151965
A105: 5126 | B105: 63.28496801
A106: 5163 | B106: 50.99961369
A107: 5172 | B107: 49.73775358
A108: 5184 | B108: 70.91746596
A109: 5214 | B109: 3.806565
A110: 5310 | B110: 62.09977363
A111: 5333 | B111: 48.07540735
A112: 5339 | B112: 56.59602287
A113: 5392 | B113: 53.45725869
A114: 5431 | B114: 47.61321602
A115: 5487 | B115: 73.97625916
A116: 5524 | B116: 56.13875083
A117: 5688 | B117: 61.65862092
A118: 5698 | B118: 65.08616202
A119: 5720 | B119: 64.48677677
A120: 5776 | B120: 62.71039962
A121: 5804 | B121: 57.40485381
A122: 5876 | B122: 69.25092266
A123: 5955 | B123: 31.0638821
A124: 6058 | B124: 63.20622536
A125: 6123 | B125: 36.8091346
A126: 6156 | B126: 65.87393149
A127: 6198 | B127: 36.16616061
A128: 6213 | B128: 37.27567754
A129: 6219 | B129: 48.01370705
A130: 6368 | B130: =VLOOKUP(A130,Scores,3,0) -> 0
A131: 6414 | B131: 71.11978606
A132: 6422 | B132: 56.72119908
A133: 6509 | B133: 0
A134: 6588 | B134: 14.68591049
A135: 6598 | B135: 46.40644633
A136: 6622 | B136: 72.74054522
A137: 6631 | B137: 50.88850313
A138: 6633 | B138: 52.64978809
A139: 6652 | B139: 64.89680908
A140: 6676 | B140: 55.54858663
A141: 6779 | B141: 39.41034667
A142: 6890 | B142: 58.59884234
A143: 6892 | B143: 61.1667534
A144: 6940 | B144: 64.0884516
A145: 7102 | B145: 43.65455501
A146: 7107 | B146: 41.67204947
A147: 7258 | B147: 64.703797
A148: 7499 | B148: 55.46578769
A149: 7600 | B149: 51.25365918
A150: 7651 | B150: 64.87049178
A151: 7674 | B151: 59.02893498
A152: 7702 | B152: 50.7549772
A153: 7719 | B153: 60.02713507
A154: 7740 | B154: 52.37038728
A155: 7746 | B155: 63.28980883
A156: 7786 | B156: 45.74267209
A157: 7899 | B157: 54.95070206
A158: 8372 | B158: 0.2213278189
A159: 8529 | B159: 61.99143879
A160: 8541 | B160: 56.07444404
A161: 8563 | B161: 58.10776641
A162: 8572 | B162: 55.19464296
A163: 8760 | B163: 55.10032538
A164: 8784 | B164: 34.80129998
A165: 8792 | B165: 58.38058637
A166: 8878 | B166: 72.14013035
A167: 8900 | B167: 36.34521861
A168: 8996 | B168: 33.29067062
A169: 9066 | B169: 61.67368377
A170: 9074 | B170: 51.55210415
A171: 9173 | B171: 51.73897588
A172: 9241 | B172: 72.72449699
A173: 9271 | B173: 60.11456375
A174: 9329 | B174: 67.47692769
A175: 9347 | B175: 50.18977944
A176: 9367 | B176: 60.84756192
A177: 9373 | B177: 52.91242047
A178: 9573 | B178: 0
A179: 9677 | B179: 50.28709527
A180: 9678 | B180: 53.19006089
A181: 9695 | B181: 42.37561029
A182: 9924 | B182: 58.26182945
A183: 9934 | B183: 10.9467388
A184: 9972 | B184: 69.9353141
A185: 10020 | B185: 45.48371638
A186: 10085 | B186: 43.13066431
A187: 10096 | B187: 52.2797751
A188: 10102 | B188: 63.02880458
A189: 10233 | B189: 67.88340612
A190: 10276 | B190: 52.39846067
A191: 10376 | B191: 25.89650309
A192: 10389 | B192: 54.5042365
A193: 10390 | B193: 53.94333543
A194: 10395 | B194: =VLOOKUP(A194,Scores,3,0) -> 56.31342399
A195: 10431 | B195: 58.4030539
A196: 10433 | B196: 58.19121722
A197: 10441 | B197: 28.1180639
A198: 10462 | B198: 52.35224051
A199: 10483 | B199: 48.77108825
A200: 10495 | B200: 61.47789533
... 2727 more rows

Sheet Scores
A1: Unique ID | B1: Weekes' Score | C1: Least Square Regression Score
A2: 15 | B2: 79.85188625 | C2: 70.67541568
A3: 136 | B3: 88.55956306 | C3: 57.20966518
A4: 181 | B4: 0 | C4: 49.53668657
A5: 208 | B5: 0 | C5: 49.490282
A6: 237 | B6: 48.89938223 | C6: 66.98168838
A7: 247 | B7: 0 | C7: 47.00460997
A8: 301 | B8: 44.77802567 | C8: 65.72551455
A9: 314 | B9: 0 | C9: 43.06849442
A10: 360 | B10: 9.958015851 | C10: 56.42606854
A11: 373 | B11: 94.65723294 | C11: 59.65160642
A12: 389 | B12: 47.58621629 | C12: 53.79921232
A13: 442 | B13: 0 | C13: 51.45006015
A14: 456 | B14: 0 | C14: 51.24866076
A15: 509 | B15: 33.70862408 | C15: 56.38217611
A16: 688 | B16: 100 | C16: 0
A17: 748 | B17: 100 | C17: 71.76481266
A18: 797 | B18: 99.9587847 | C18: 72.19811495
A19: 1009 | B19: 100 | C19: 67.65325537
A20: 1045 | B20: 0 | C20: 45.14655452
A21: 1065 | B21: 93.17967405 | C21: 59.41511242
A22: 1123 | B22: 0 | C22: 43.67883139
A23: 1133 | B23: 0 | C23: 36.29588927
A24: 1254 | B24: 0 | C24: 48.59552003
A25: 1392 | B25: 0 | C25: 49.9121963
A26: 1594 | B26: 43.03957632 | C26: 54.56338326
A27: 1637 | B27: 81.04979714 | C27: 57.45780988
A28: 1641 | B28: 68.71955214 | C28: 68.11047645
A29: 1686 | B29: 0 | C29: 36.71821964
A30: 1763 | B30: 0 | C30: 45.35872965
A31: 1845 | B31: 57.13781946 | C31: 59.00150134
A32: 1848 | B32: 45.38135497 | C32: 66.54662104
A33: 1933 | B33: 88.79151212 | C33: 69.36987621
A34: 1943 | B34: 0 | C34: 43.701629
A35: 2017 | B35: 86.93506255 | C35: 61.13923507
A36: 2023 | B36: 6.500985608 | C36: 50.80126866
A37: 2027 | B37: 94.81942206 | C37: 59.78320193
A38: 2141 | B38: 82.85134975 | C38: 78.39452722
A39: 2147 | B39: 51.0439691 | C39: 59.86680942
A40: 2157 | B40: 0 | C40: 30.17228105
A41: 2159 | B41: 83.60741746 | C41: 67.18974786
A42: 2165 | B42: 53.50475248 | C42: 67.47518667
A43: 2205 | B43: 100 | C43: 0
A44: 2213 | B44: 92.16359441 | C44: 57.81889822
A45: 2232 | B45: 96.67393553 | C45: 61.44579887
A46: 2248 | B46: 81.04880839 | C46: 58.66401528
A47: 2255 | B47: 27.80393563 | C47: 59.36237744
A48: 2276 | B48: 100 | C48: 71.35397789
A49: 2287 | B49: 100 | C49: 70.63180741
A50: 2389 | B50: 0 | C50: 37.52588926
A51: 2443 | B51: 57.73825365 | C51: 68.3650442
A52: 2500 | B52: 95.29142751 | C52: 72.81060245
A53: 2506 | B53: 85.53606676 | C53: 57.80628553
A54: 2517 | B54: 56.99277892 | C54: 56.38252141
A55: 2535 | B55: 58.49238203 | C55: 57.59104359
A56: 2629 | B56: 96.67070285 | C56: 61.44258922
A57: 2681 | B57: 0 | C57: 47.04241765
A58: 2707 | B58: 96.38766402 | C58: 61.16655961
A59: 2733 | B59: 0 | C59: 39.31728188
A60: 2734 | B60: 49.40584023 | C60: 64.41990933
A61: 2937 | B61: 88.70139291 | C61: 55.68127359
A62: 2952 | B62: 99.90953339 | C62: 66.00670667
A63: 2991 | B63: 0 | C63: 52.7151586
A64: 3047 | B64: 99.02620201 | C64: 64.31522292
A65: 3128 | B65: 93.37977991 | C65: 58.67266421
A66: 3142 | B66: 96.87235013 | C66: 69.8608424
A67: 3177 | B67: 12.27053528 | C67: 53.99520412
A68: 3197 | B68: 69.63936586 | C68: 58.07388835
A69: 3295 | B69: 89.12233121 | C69: 69.37456532
A70: 3314 | B70: 0 | C70: 30.98512101
A71: 3343 | B71: 100 | C71: 70.74414504
A72: 3404 | B72: 91.71558447 | C72: 74.71815898
A73: 3406 | B73: 0 | C73: 47.45175201
A74: 3423 | B74: 53.14306912 | C74: 86.1965462
A75: 3550 | B75: 61.28573937 | C75: 53.99412445
A76: 3564 | B76: 62.34567708 | C76: 53.9080587
A77: 3721 | B77: 88.91406841 | C77: 63.65110087
A78: 3734 | B78: 86.07205864 | C78: 70.541376
A79: 3814 | B79: 0 | C79: 35.93169825
A80: 3840 | B80: 60.16610152 | C80: 66.33697819
A81: 3842 | B81: 0 | C81: 35.99372736
A82: 3853 | B82: 0 | C82: 39.36490023
A83: 3946 | B83: 42.48768661 | C83: 60.30089053
A84: 4021 | B84: 100 | C84: 71.31225249
A85: 4030 | B85: 0 | C85: 42.81887717
A86: 4075 | B86: 0 | C86: 46.32179278
A87: 4103 | B87: 58.2255255 | C87: 68.50624333
A88: 4156 | B88: 96.23900919 | C88: 61.02533516
A89: 4268 | B89: 0 | C89: 36.46411071
A90: 4324 | B90: 88.41169357 | C90: 55.51758161
A91: 4356 | B91: 41.81708037 | C91: 54.2992411
A92: 4367 | B92: 47.49183767 | C92: 67.05447593
A93: 4434 | B93: 0 | C93: 23.79216704
A94: 4444 | B94: 0 | C94: 37.12919917
A95: 4492 | B95: 0 | C95: 42.01398682
A96: 4739 | B96: 100 | C96: 5.210632107
A97: 4787 | B97: 0 | C97: 50.91262839
A98: 4881 | B98: 93.55443874 | C98: 58.80105007
A99: 4886 | B99: 48.48324023 | C99: 53.76863756
A100: 4987 | B100: 100 | C100: 69.71705813
A101: 5023 | B101: 100 | C101: 71.19349556
A102: 5049 | B102: 100 | C102: 76.81452811
A103: 5068 | B103: 0 | C103: 24.68771954
A104: 5072 | B104: 100 | C104: 43.42151965
A105: 5126 | B105: 36.3186446 | C105: 63.28496801
A106: 5163 | B106: 22.01722859 | C106: 50.99961369
A107: 5172 | B107: 2.651946239 | C107: 49.73775358
A108: 5184 | B108: 100 | C108: 70.91746596
A109: 5214 | B109: 0 | C109: 3.806565
A110: 5310 | B110: 92.43290476 | C110: 62.09977363
A111: 5333 | B111: 0 | C111: 48.07540735
A112: 5339 | B112: 90.25594299 | C112: 56.59602287
A113: 5392 | B113: 28.9087723 | C113: 53.45725869
A114: 5431 | B114: 6.899692023 | C114: 47.61321602
A115: 5487 | B115: 99.04843385 | C115: 73.97625916
A116: 5524 | B116: 37.13638508 | C116: 56.13875083
A117: 5688 | B117: 30.8255968 | C117: 61.65862092
A118: 5698 | B118: 96.63832489 | C118: 65.08616202
A119: 5720 | B119: 40.89401159 | C119: 64.48677677
A120: 5776 | B120: 97.8430157 | C120: 62.71039962
A121: 5804 | B121: 91.53954453 | C121: 57.40485381
A122: 5876 | B122: 89.05848075 | C122: 69.25092266
A123: 5955 | B123: 0 | C123: 31.0638821
A124: 6058 | B124: 51.91806729 | C124: 63.20622536
A125: 6123 | B125: 0 | C125: 36.8091346
A126: 6156 | B126: 48.97193847 | C126: 65.87393149
A127: 6198 | B127: 0 | C127: 36.16616061
A128: 6213 | B128: 0 | C128: 37.27567754
A129: 6219 | B129: 0 | C129: 48.01370705
A130: 6368 | B130: 100 | C130: 0
A131: 6414 | B131: 88.69507177 | C131: 71.11978606
A132: 6422 | B132: 90.46017855 | C132: 56.72119908
A133: 6509 | B133: 100 | C133: 0
A134: 6588 | B134: 0 | C134: 14.68591049
A135: 6598 | B135: 0 | C135: 46.40644633
A136: 6622 | B136: 99.72480702 | C136: 72.74054522
A137: 6631 | B137: 37.70037115 | C137: 50.88850313
A138: 6633 | B138: 31.17459485 | C138: 52.64978809
A139: 6652 | B139: 92.25651392 | C139: 64.89680908
A140: 6676 | B140: 41.10939766 | C140: 55.54858663
A141: 6779 | B141: 0 | C141: 39.41034667
A142: 6890 | B142: 93.27837725 | C142: 58.59884234
A143: 6892 | B143: 29.98979377 | C143: 61.1667534
A144: 6940 | B144: 39.06771383 | C144: 64.0884516
A145: 7102 | B145: 0 | C145: 43.65455501
A146: 7107 | B146: 0 | C146: 41.67204947
A147: 7258 | B147: 41.12135638 | C147: 64.703797
A148: 7499 | B148: 81.63027781 | C148: 55.46578769
A149: 7600 | B149: 0 | C149: 51.25365918
A150: 7651 | B150: 99.35733535 | C150: 64.87049178
A151: 7674 | B151: 93.85916153 | C151: 59.02893498
A152: 7702 | B152: 0 | C152: 50.7549772
A153: 7719 | B153: 95.11408922 | C153: 60.02713507
A154: 7740 | B154: 27.29640771 | C154: 52.37038728
A155: 7746 | B155: 98.085014 | C155: 63.28980883
A156: 7786 | B156: 0 | C156: 45.74267209
A157: 7899 | B157: 41.38405752 | C157: 54.95070206
A158: 8372 | B158: 100 | C158: 0.2213278189
A159: 8529 | B159: 97.20395364 | C159: 61.99143879
A160: 8541 | B160: 64.69062269 | C160: 56.07444404
A161: 8563 | B161: 92.58573143 | C161: 58.10776641
A162: 8572 | B162: 67.4084474 | C162: 55.19464296
A163: 8760 | B163: 6.600736435 | C163: 55.10032538
A164: 8784 | B164: 0 | C164: 34.80129998
A165: 8792 | B165: 92.97441926 | C165: 58.38058637
A166: 8878 | B166: 87.50667755 | C166: 72.14013035
A167: 8900 | B167: 0 | C167: 36.34521861
A168: 8996 | B168: 0 | C168: 33.29067062
A169: 9066 | B169: 96.90002005 | C169: 61.67368377
A170: 9074 | B170: 21.34253054 | C170: 51.55210415
A171: 9173 | B171: 70 | C171: 51.73897588
A172: 9241 | B172: 99.73228054 | C172: 72.72449699
A173: 9271 | B173: 22.26523999 | C173: 60.11456375
A174: 9329 | B174: 50.73880535 | C174: 67.47692769
A175: 9347 | B175: 0 | C175: 50.18977944
A176: 9367 | B176: 41.47406735 | C176: 60.84756192
A177: 9373 | B177: 15.98045076 | C177: 52.91242047
A178: 9573 | B178: 100 | C178: 0
A179: 9677 | B179: 7.740514569 | C179: 50.28709527
A180: 9678 | B180: 28.53479168 | C180: 53.19006089
A181: 9695 | B181: 0 | C181: 42.37561029
A182: 9924 | B182: 92.80641934 | C182: 58.26182945
A183: 9934 | B183: 10.69892058 | C183: 10.9467388
A184: 9972 | B184: 100 | C184: 69.9353141
A185: 10020 | B185: 0 | C185: 45.48371638
A186: 10085 | B186: 0 | C186: 43.13066431
A187: 10096 | B187: 30.63345486 | C187: 52.2797751
A188: 10102 | B188: 63.74384708 | C188: 63.02880458
A189: 10233 | B189: 64.6533428 | C189: 67.88340612
A190: 10276 | B190: 0 | C190: 52.39846067
A191: 10376 | B191: 0 | C191: 25.89650309
A192: 10389 | B192: 36.31407276 | C192: 54.5042365
A193: 10390 | B193: 21.64911844 | C193: 53.94333543
A194: 10395 | B194: 75.23745145 | C194: 56.31342399
A195: 10431 | B195: 93.00599603 | C195: 58.4030539
A196: 10433 | B196: 92.70565514 | C196: 58.19121722
A197: 10441 | B197: 0 | C197: 28.1180639
A198: 10462 | B198: 30.52392521 | C198: 52.35224051
A199: 10483 | B199: 6.543250473 | C199: 48.77108825
A200: 10495 | B200: 96.70618839 | C200: 61.47789533
... 2727 more rows

Sheet Variable 1
A1: Unique_ID | B1: Score | C1: Cluster | J1: # of population | K1: score
E2: cluster | F2: average | G2: # of population | H2: sum of score | J2: 0 | K2: 0 | N2: AREA of Clusters
E3: 9 | F3: =H3/G3 ->  | G3: =COUNTIF(CLUSTER1v3,E3) -> 0 | H3: =SUMIFS( SCORE1v3, CLUSTER1v3, E3) -> 0 | J3: =J2+G3 -> 0 | K3: 0 | N3: =(K3+K2)*(J3-J2)/2 -> 0
E4: 5 | G4: 0 | H4: 0 | J4: 0 | K4: 0 | N4: 0
E5: 10 | G5: 0 | H5: 0 | J5: 0 | K5: 0 | N5: 0
E6: 2 | G6: 0 | H6: 0 | J6: 0 | K6: 0 | N6: 0
E7: 3 | G7: 0 | H7: 0 | J7: 0 | K7: 0 | N7: 0
E8: 4 | G8: 0 | H8: 0 | J8: 0 | K8: 0 | N8: 0
E9: 1 | G9: 0 | H9: 0 | J9: 0 | K9: 0 | N9: 0
E10: 8 | G10: 0 | H10: 0 | J10: 0 | K10: 0 | N10: 0
E11: 7 | G11: 0 | H11: 0 | J11: 0 | K11: 0 | N11: 0
E12: 6 | G12: 0 | H12: 0 | J12: 0 | K12: 0 | N12: 0
M13: SUM | N13: =SUM(N3:N12) -> 0
J15: Average 1
J16: =J2 -> 0 | K16: =K2 -> 0 | N16: AREA of Average
J17: =J12 -> 0 | K17: =K12 -> 0 | N17: =(K17*J17)/2 -> 0
N19: AREA DIFFERENCE
N20: =N17-N13 -> 0
